bitfinex/quotes_SOLUSD_20220102
["timestamp","ask_amount","ask_price","bid_price","bid_amount"]
[1641102902517,10.29042928,176.58,176.45,9.7114]
[1641102902916,10.55042928,176.58,176.45,9.7114]
[1641102903116,10.55042928,176.58,176.45,83.2908]
[1641102903719,8.94,176.58,176.45,83.2908]
[1641102904320,8.94,176.58,176.45,83.0308]
[1641102905522,1.2098,176.57,176.45,83.0308]
[1641102905923,1.9698,176.57,176.45,83.0308]
[1641102909131,3.58022928,176.57,176.45,83.0308]
[1641102911129,1.61042928,176.56,176.45,83.0308]
[1641102911450,2.11042928,176.56,176.45,83.0308]
[1641102911653,0.76,176.56,176.45,83.0308]
[1641102912055,0.26,176.56,176.45,83.0308]
[1641102912254,1.2013,176.56,176.45,83.0308]
[1641102912453,1.7013,176.56,176.45,83.0308]
[1641102912754,1.9613,176.56,176.45,83.0308]
[1641102913352,3.57172928,176.56,176.45,83.0308]
[1641102914053,1.9613,176.56,176.45,83.0308]
[1641102914453,3.57172928,176.56,176.45,83.0308]
[1641102914852,1.61042928,176.55,176.45,83.0308]
[1641102915052,1.87042928,176.55,176.45,83.0308]
[1641102915252,2.37042928,176.55,176.45,83.0308]
[1641102915455,0.76,176.55,176.45,83.0308]
[1641102915853,3.57172928,176.56,176.45,83.0308]
[1641102916057,1.61042928,176.55,176.45,83.0308]
[1641102916454,2.37042928,176.55,176.45,83.0308]
[1641102916856,1.87042928,176.55,176.45,83.0308]
[1641102917354,0.26,176.55,176.45,83.0308]
[1641102917653,3.07172928,176.56,176.45,83.0308]
[1641102917855,3.57172928,176.56,176.45,83.0308]
[1641102920563,1.61042928,176.55,176.45,83.0308]
[1641102920961,1.87042928,176.55,176.45,83.0308]
[1641102921163,1.87042928,176.55,176.45,73.3194]
[1641102921363,0.76,176.55,176.43,8.5003]
[1641102921562,23.67981654,176.53,176.41,1.253]
[1641102921967,24.43981654,176.53,176.41,1.253]
[1641102922164,26.05024582,176.53,176.41,1.253]
[1641102922765,1.61042928,176.52,176.41,1.253]
[1641102922964,3.69012928,176.52,176.41,1.253]
[1641102923567,8.5012,176.51,176.41,1.253]
[1641102923868,9.0012,176.51,176.42,8.5008]
[1641102924066,9.2612,176.51,176.42,8.5008]
[1641102924568,10.5145,176.51,176.42,8.5008]
[1641102924969,1.5133,176.51,176.42,8.7608]
[1641102925376,0.26,176.51,176.42,8.7608]
[1641102925568,1.61042928,176.52,176.42,8.7608]
[1641102926169,1.61042928,176.52,176.44,8.4998]
[1641102926569,33.68275759,176.54,176.44,8.4998]
[1641102926768,34.18275759,176.54,176.44,8.4998]
[1641102926972,34.44275759,176.54,176.44,8.4998]
[1641102927368,32.83232831,176.54,176.44,8.4998]
[1641102927569,9.2597,176.54,176.44,8.4998]
[1641102928568,9.2597,176.54,176.45,9.7629]
[1641102928770,9.2597,176.54,176.45,8.4997]
[1641102932577,0.26,176.54,176.45,8.4997]
[1641102932976,10.5161,176.55,176.41,28.3316]
[1641102933177,10.5161,176.55,176.44,8.5002]
[1641102934279,1.61042928,176.53,176.44,8.5002]
[1641102934480,1.87042928,176.53,176.44,8.5002]
[1641102934780,2.37042928,176.53,176.44,8.5002]
[1641102935780,3.61162928,176.53,176.44,8.5002]
[1641102935981,1.61042928,176.53,176.44,8.7602]
[1641102936585,10.17432928,176.57,176.44,8.7602]
[1641102936783,10.17432928,176.57,176.45,1.2135]
[1641102936982,10.17432928,176.57,176.48,8.4979]
[1641102937806,1.61042928,176.57,176.48,8.4979]
[1641102938008,2.37042928,176.57,176.48,8.4979]
[1641102938208,1.87042928,176.57,176.48,8.4979]
[1641102939507,10.36862928,176.57,176.48,8.4979]
[1641102939907,10.86862928,176.57,176.48,8.4979]
[1641102940107,1.61042928,176.56,176.48,8.4979]
[1641102940507,1.87042928,176.56,176.48,8.4979]
[1641102943811,1.61042928,176.55,176.48,8.4979]
[1641102944011,1.87042928,176.55,176.48,8.4979]
[1641102946214,0.26,176.55,176.48,8.4979]
[1641102946616,1.87042928,176.56,176.48,8.4979]
[1641102947816,10.36912928,176.56,176.45,1.2135]
[1641102948016,10.86912928,176.56,176.45,1.2135]
[1641102948616,1.61042928,176.54,176.45,1.2135]
[1641102949024,1.61042928,176.53,176.45,1.2135]
[1641102949324,1.61042928,176.53,176.45,9.7131]
[1641102949524,1.61042928,176.53,176.45,9.9731]
[1641102949924,1.61042928,176.54,176.45,9.9731]
[1641102950522,1.61042928,176.54,176.45,17.76779368]
[1641102950723,1.61042928,176.54,176.5,8.4971]
[1641102950922,1.87042928,176.54,176.5,8.4971]
[1641102951122,0.26,176.54,176.5,8.4971]
[1641102951522,1.87042928,176.57,176.5,8.4971]
[1641102951730,1.61042928,176.57,176.5,8.4971]
[1641102951925,1.3119,176.58,176.5,8.4971]
[1641102952525,2.92232928,176.58,176.5,8.4971]
[1641102953126,3.18232928,176.58,176.5,8.4971]
[1641102954429,1.5719,176.58,176.5,8.4971]
[1641102954831,3.18232928,176.58,176.5,8.4971]
[1641102956659,1.61042928,176.57,176.5,8.4971]
[1641102957059,1.87042928,176.57,176.5,8.4971]
[1641102957659,1.87042928,176.57,176.49,8.4977]
[1641102958661,1.61042928,176.56,176.49,8.4977]
[1641102958962,1.87042928,176.56,176.49,8.4977]
[1641102960361,0.26,176.56,176.49,8.4977]
[1641102960562,1.87042928,176.57,176.49,8.4977]
[1641102964164,1.61042928,176.56,176.49,8.4977]
[1641102964565,1.87042928,176.56,176.49,8.4977]
[1641102964866,0.26,176.56,176.49,8.4977]
[1641102965167,1.87042928,176.57,176.49,8.4977]
[1641102968268,1.61042928,176.56,176.49,8.4977]
[1641102968469,1.87042928,176.56,176.49,8.4977]
[1641102968668,0.26,176.56,176.49,8.4977]
[1641102969269,1.87042928,176.57,176.49,8.4977]
[1641102971171,1.61042928,176.56,176.49,8.4977]
[1641102971571,1.87042928,176.56,176.49,8.4977]
[1641102972773,0.26,176.56,176.49,8.4977]
[1641102972971,1.87042928,176.57,176.49,8.4977]
[1641102973172,0.26,176.57,176.49,8.4977]
[1641102973571,3.68232928,176.58,176.49,8.4977]
[1641102973771,3.18232928,176.58,176.49,8.4977]
[1641102974271,3.18232928,176.58,176.5,1.2694]
[1641102974472,3.18232928,176.58,176.5,9.7666]
[1641102974674,3.68232928,176.58,176.5,9.7666]
[1641102974871,3.18232928,176.58,176.5,9.7666]
[1641102975974,3.68232928,176.58,176.5,9.7666]
[1641102976375,3.18232928,176.58,176.5,9.7666]
[1641102979177,3.68232928,176.58,176.5,9.7666]
[1641102979979,11.54292928,176.58,176.5,9.7666]
[1641102980179,1.61042928,176.57,176.5,9.7666]
[1641102980485,1.87042928,176.57,176.5,9.7666]
[1641102984188,0.26,176.57,176.5,9.7666]
[1641102984686,11.54292928,176.58,176.5,9.7666]
[1641102985991,12.04292928,176.58,176.5,9.7666]
[1641102986191,11.54292928,176.58,176.5,9.7666]
[1641102987894,3.68232928,176.58,176.48,8.4979]
[1641102988294,1.61042928,176.57,176.47,74.3936]
[1641102988495,2.37042928,176.57,176.47,74.3936]
[1641102989499,1.61042928,176.56,176.47,74.3936]
[1641102989701,1.61042928,176.56,176.47,82.8923]
[1641102989897,2.37042928,176.56,176.47,82.8923]
[1641102990500,3.64272928,176.56,176.47,82.8923]
[1641102991800,3.64272928,176.56,176.47,9.7766]
[1641102996704,2.0323,176.56,176.47,9.7766]
[1641102997305,3.64272928,176.56,176.47,9.7766]
[1641102999726,3.14272928,176.56,176.47,9.7766]
[1641103000025,3.64272928,176.56,176.47,9.7766]
[1641103003829,1.61042928,176.55,176.47,9.7766]
[1641103004033,1.87042928,176.55,176.47,9.7766]
[1641103004231,2.37042928,176.55,176.47,9.7766]
[1641103007035,0.76,176.55,176.47,9.7766]
[1641103007234,3.64272928,176.56,176.47,9.7766]
[1641103007435,11.97052928,176.56,176.47,9.7766]
[1641103007734,1.61042928,176.55,176.47,9.7766]
[1641103007934,2.11042928,176.55,176.47,9.7766]
[1641103008133,2.37042928,176.55,176.47,9.7766]
[1641103008334,2.37042928,176.55,176.47,1.2779]
[1641103009135,3.62692928,176.55,176.47,1.2779]
[1641103010235,24.39542426,176.54,176.47,1.2779]
[1641103010434,0.5,176.54,176.47,1.2779]
[1641103010634,0.76,176.54,176.47,1.2779]
[1641103011040,1.87042928,176.54,176.47,1.2779]
[1641103011238,1.61042928,176.54,176.47,1.2779]
[1641103011534,2.37042928,176.54,176.47,1.2779]
[1641103014339,0.76,176.54,176.47,1.2779]
[1641103014543,0.5,176.54,176.47,1.2779]
[1641103014742,12.12652928,176.55,176.47,1.2779]
[1641103016442,3.62692928,176.55,176.47,1.2779]
[1641103017050,1.61042928,176.55,176.47,1.2779]
[1641103017250,1.61042928,176.56,176.47,1.5379]
[1641103017450,1.61042928,176.56,176.47,10.0366]
[1641103017850,1.61042928,176.58,176.47,10.0366]
[1641103018253,2.11042928,176.58,176.47,10.0366]
[1641103019650,2.37042928,176.58,176.47,10.0366]
[1641103023758,0.76,176.58,176.47,10.0366]
[1641103024060,12.12622928,176.59,176.47,10.0366]
[1641103024260,20.30622928,176.59,176.47,10.0366]
[1641103024460,1.61042928,176.57,176.47,10.0366]
[1641103024959,0.76,176.57,176.47,10.0366]
[1641103025359,0.26,176.57,176.47,10.0366]
[1641103025559,2.11042928,176.58,176.47,10.0366]
[1641103025560,2.37042928,176.58,176.47,10.0366]
[1641103026161,1.61042928,176.57,176.47,10.0366]
[1641103026361,2.11042928,176.57,176.47,10.0366]
[1641103026564,2.37042928,176.57,176.47,10.0366]
[1641103035997,1.61042928,176.56,176.47,10.0366]
[1641103036395,1.87042928,176.56,176.47,9.7766]
[1641103036596,2.37042928,176.56,176.47,9.7766]
[1641103037497,1.61042928,176.55,176.47,9.7766]
[1641103037897,2.37042928,176.55,176.47,9.7766]
[1641103038499,0.76,176.55,176.47,9.7766]
[1641103038903,2.37042928,176.56,176.47,9.7766]
[1641103043409,10.55042928,176.56,176.47,9.7766]
[1641103043612,2.37042928,176.56,176.47,9.7766]
[1641103044010,0.76,176.56,176.47,9.7766]
[1641103044212,8.94,176.56,176.47,9.7766]
[1641103044413,8.68,176.56,176.47,9.7766]
[1641103044611,1.61042928,176.55,176.47,9.7766]
[1641103045012,2.37042928,176.55,176.47,9.7766]
[1641103045213,2.37042928,176.55,176.47,1.2779]
[1641103046115,3.62192928,176.55,176.47,1.2779]
[1641103046720,12.12122928,176.55,176.47,1.2779]
[1641103047821,1.61042928,176.54,176.47,1.2779]
[1641103048019,1.87042928,176.54,176.47,1.2779]
[1641103048218,27.58158214,176.53,176.47,1.2779]
[1641103048420,28.08158214,176.53,176.44,75.0072]
[1641103048622,28.34158214,176.53,176.45,1.2549]
[1641103049121,29.95201142,176.53,176.45,1.2549]
[1641103049721,38.45241142,176.53,176.45,1.2549]
[1641103050122,1.61042928,176.52,176.45,1.2549]
[1641103050347,2.11042928,176.52,176.45,1.2549]
[1641103050547,2.37042928,176.52,176.45,1.2549]
[1641103050747,10.87132928,176.52,176.45,1.2549]
[1641103051747,12.12452928,176.52,176.45,1.2549]
[1641103056452,11.62452928,176.52,176.45,1.2549]
[1641103056655,1.61042928,176.52,176.45,1.2549]
[1641103057555,1.61042928,176.55,176.45,1.2549]
[1641103057954,25.86965231,176.54,176.45,9.7545]
[1641103058356,26.36965231,176.54,176.45,9.7545]
[1641103058557,26.62965231,176.54,176.45,9.7545]
[1641103059056,28.24008159,176.54,176.45,9.7545]
[1641103059459,1.61042928,176.53,176.45,9.7545]
[1641103059860,1.87042928,176.53,176.45,9.7545]
[1641103060060,0.26,176.53,176.45,9.7545]
[1641103060460,28.24008159,176.54,176.45,9.7545]
[1641103060861,29.44608159,176.54,176.45,9.7545]
[1641103061760,1.61042928,176.53,176.45,9.7545]
[1641103061960,2.37042928,176.53,176.45,9.7545]
[1641103063564,2.37042928,176.53,176.45,1.2549]
[1641103063965,1.61042928,176.52,176.45,1.2549]
[1641103064367,1.87042928,176.52,176.45,1.2549]
[1641103065166,0.26,176.52,176.45,1.2549]
[1641103065567,36.33555231,176.54,176.45,1.2549]
[1641103066767,36.33555231,176.54,176.45,9.7547]
[1641103069269,44.51555231,176.54,176.45,9.7547]
[1641103069471,44.51555231,176.54,176.43,8.5003]
[1641103069669,44.51555231,176.54,176.41,1.2844]
[1641103070073,1.61042928,176.52,176.41,1.2844]
[1641103070272,18.29132928,176.52,176.41,1.2844]
[1641103070472,19.05132928,176.52,176.41,1.2844]
[1641103070671,17.4409,176.52,176.43,8.5007]
[1641103071876,8.44,176.52,176.43,8.5007]
[1641103072574,0.26,176.52,176.43,8.5007]
[1641103072774,0.76,176.52,176.43,8.5007]
[1641103072975,0.5,176.52,176.43,8.5007]
[1641103073377,0.76,176.53,176.43,8.5007]
[1641103073579,8.18,176.52,176.43,8.5007]
[1641103073776,1.61042928,176.5,176.43,8.5007]
[1641103073975,1.87042928,176.5,176.43,8.5007]
[1641103074477,0.26,176.5,176.43,8.5007]
[1641103074976,1.87042928,176.51,176.43,8.5007]
[1641103075877,2.37042928,176.51,176.43,8.5007]
[1641103076079,1.87042928,176.51,176.43,8.5007]
[1641103076498,2.37042928,176.51,176.43,8.5007]
[1641103076903,1.87042928,176.51,176.43,8.5007]
[1641103079105,1.87042928,176.51,176.43,8.7607]
[1641103079404,1.61042928,176.51,176.43,8.7607]
[1641103079605,1.61042928,176.52,176.43,8.7607]
[1641103080405,1.61042928,176.53,176.46,8.4988]
[1641103080606,1.87042928,176.53,176.46,8.4988]
[1641103081008,0.26,176.53,176.46,8.4988]
[1641103081508,2.37042928,176.54,176.46,8.4988]
[1641103081708,3.59272928,176.54,176.46,8.4988]
[1641103082908,2.83272928,176.54,176.46,8.4988]
[1641103083111,1.61042928,176.54,176.46,8.7588]
[1641103083313,1.61042928,176.54,176.46,8.4988]
[1641103084410,1.61042928,176.53,176.46,8.4988]
[1641103084610,1.87042928,176.53,176.46,8.4988]
[1641103085012,0.26,176.53,176.46,8.4988]
[1641103085212,1.61042928,176.54,176.46,8.4988]
[1641103085410,2.37042928,176.54,176.46,8.4988]
[1641103086011,1.87042928,176.54,176.46,8.4988]
[1641103086211,1.87042928,176.54,176.46,15.2288]
[1641103086411,1.87042928,176.54,176.46,15.4888]
[1641103087015,0.26,176.54,176.46,15.4888]
[1641103087412,1.527,176.55,176.46,15.4888]
[1641103087714,1.527,176.55,176.46,8.7588]
[1641103087911,1.527,176.55,176.47,9.7329]
[1641103090417,2.027,176.55,176.47,9.7329]
[1641103091220,1.527,176.55,176.47,9.7329]
[1641103091417,2.027,176.55,176.47,9.7329]
[1641103093616,1.527,176.55,176.47,9.7329]
[1641103096718,0.26,176.55,176.47,9.7329]
[1641103097121,2.37042928,176.56,176.47,9.7329]
[1641103097721,1.61042928,176.55,176.47,9.7329]
[1641103098122,1.87042928,176.55,176.47,9.7329]
[1641103099525,0.26,176.55,176.47,9.7329]
[1641103099726,1.61042928,176.56,176.47,9.7329]
[1641103099923,2.37042928,176.56,176.47,9.7329]
[1641103113374,19.04922928,176.56,176.45,8.4993]
[1641103114273,10.11022928,176.54,176.45,8.4993]
[1641103114571,10.87022928,176.54,176.45,8.4993]
[1641103116977,1.61042928,176.53,176.45,8.4993]
[1641103117376,2.37042928,176.53,176.45,8.4993]
[1641103118181,1.61042928,176.53,176.45,8.4993]
[1641103118780,1.61042928,176.55,176.45,8.7593]
[1641103119182,1.61042928,176.55,176.45,8.4993]
[1641103119382,10.29042928,176.55,176.45,8.4993]
[1641103119582,10.55042928,176.55,176.45,8.4993]
[1641103119782,1.61042928,176.54,176.45,8.4993]
[1641103119982,2.37042928,176.54,176.45,8.4993]
[1641103120181,3.65442928,176.54,176.45,8.4993]
[1641103120784,3.15442928,176.54,176.45,8.4993]
[1641103120983,3.65442928,176.54,176.45,8.4993]
[1641103122389,3.15442928,176.54,176.45,8.4993]
[1641103122790,3.65442928,176.54,176.45,8.4993]
[1641103123191,3.65442928,176.54,176.46,1.2526]
[1641103123392,3.65442928,176.54,176.47,8.4985]
[1641103128498,1.87042928,176.54,176.47,16.0205]
[1641103128796,1.61042928,176.55,176.47,16.0205]
[1641103129019,1.61042928,176.55,176.47,16.2805]
[1641103129218,1.61042928,176.56,176.47,16.2805]
[1641103129418,1.61042928,176.56,176.48,9.3831]
[1641103129618,1.61042928,176.56,176.51,8.4966]
[1641103129819,1.61042928,176.56,176.51,13.3456]
[1641103130019,1.61042928,176.58,176.51,13.3456]
[1641103131124,1.61042928,176.58,176.51,13.6056]
[1641103132023,4.83021695,176.62,176.51,13.6056]
[1641103132223,0.26,176.58,176.51,13.6056]
[1641103132424,2.37042928,176.62,176.51,13.6056]
[1641103132826,2.37042928,176.62,176.52,1.2984]
[1641103133025,2.37042928,176.62,176.53,8.4955]
[1641103134828,10.86652928,176.62,176.53,8.4955]
[1641103135830,10.86652928,176.62,176.52,9.7946]
[1641103136629,1.295,176.61,176.52,9.7946]
[1641103136829,1.795,176.61,176.52,9.7946]
[1641103137032,3.66542928,176.61,176.52,9.7946]
[1641103137632,1.61042928,176.6,176.52,9.7946]
[1641103138131,0.26,176.6,176.52,9.7946]
[1641103138534,10.86672928,176.61,176.52,9.7946]
[1641103139333,1.61042928,176.58,176.52,9.7946]
[1641103139533,1.87042928,176.58,176.52,9.7946]
[1641103141134,0.26,176.58,176.52,9.7946]
[1641103141638,1.61042928,176.58,176.52,9.7946]
[1641103142036,1.87042928,176.58,176.52,9.7946]
[1641103143839,1.61042928,176.58,176.52,9.7946]
[1641103144438,1.61042928,176.59,176.52,10.0546]
[1641103144638,1.61042928,176.59,176.52,16.0096]
[1641103145038,1.61042928,176.61,176.52,16.0096]
[1641103145439,1.87042928,176.61,176.52,16.0096]
[1641103146141,1.61042928,176.61,176.52,16.0096]
[1641103147149,1.61042928,176.62,176.52,16.0096]
[1641103147541,1.87042928,176.62,176.52,16.0096]
[1641103149069,0.26,176.62,176.52,16.0096]
[1641103149469,1.87042928,176.63,176.52,16.0096]
[1641103151074,1.87042928,176.63,176.53,8.18]
[1641103151272,1.87042928,176.63,176.58,8.4932]
[1641103152073,1.61042928,176.64,176.58,8.4932]
[1641103152472,1.87042928,176.64,176.58,8.4932]
[1641103153073,0.26,176.64,176.58,8.4932]
[1641103153474,1.87042928,176.65,176.58,8.4932]
[1641103154073,1.61042928,176.65,176.58,8.7532]
[1641103154274,1.61042928,176.65,176.58,16.1832]
[1641103154677,1.61042928,176.66,176.58,16.1832]
[1641103155476,1.61042928,176.66,176.61,8.4915]
[1641103155675,1.61042928,176.66,176.59,1.2736]
[1641103155877,1.61042928,176.67,176.59,1.2736]
[1641103156277,0.5,176.67,176.55,76.1817]
[1641103156581,0.5,176.67,176.56,1.3138]
[1641103156778,1.2083,176.69,176.56,37.8]
[1641103156981,1.2083,176.69,176.56,38.06]
[1641103157178,1.4683,176.69,176.56,38.06]
[1641103158585,1.4683,176.69,176.6,8.4921]
[1641103159886,1.2083,176.69,176.6,8.4921]
[1641103160384,1.2083,176.69,176.6,8.7521]
[1641103161184,1.61042928,176.66,176.6,8.7521]
[1641103161383,1.61042928,176.66,176.61,9.8133]
[1641103161583,1.61042928,176.67,176.61,9.8133]
[1641103162086,1.87042928,176.67,176.61,9.8133]
[1641103163683,0.26,176.67,176.61,9.8133]
[1641103164084,1.87042928,176.68,176.61,9.8133]
[1641103164284,1.87042928,176.68,176.61,8.4913]
[1641103164686,1.61042928,176.67,176.61,9.8066]
[1641103165086,1.87042928,176.67,176.61,9.8066]
[1641103165689,1.61042928,176.67,176.61,10.0666]
[1641103168121,1.61042928,176.68,176.61,10.0666]
[1641103168523,1.61042928,176.67,176.61,17.1256]
[1641103169620,0.26,176.68,176.61,17.1256]
[1641103169621,1.87042928,176.68,176.61,17.1256]
[1641103170019,2.37042928,176.68,176.61,17.1256]
[1641103170220,1.87042928,176.68,176.61,17.1256]
[1641103171323,1.87042928,176.68,176.61,9.8066]
[1641103171721,1.87042928,176.68,176.61,8.4913]
[1641103172220,1.61042928,176.66,176.61,8.4913]
[1641103172623,1.87042928,176.66,176.58,1.2638]
[1641103172821,1.87042928,176.66,176.59,8.4923]
[1641103173021,1.87042928,176.66,176.58,1.2638]
[1641103173822,1.61042928,176.65,176.58,1.2638]
[1641103174023,1.87042928,176.65,176.58,1.2638]
[1641103174625,1.87042928,176.65,176.58,9.7571]
[1641103175825,1.61042928,176.64,176.58,9.7571]
[1641103176126,1.87042928,176.64,176.58,9.7571]
[1641103177329,1.61042928,176.64,176.58,10.0171]
[1641103177728,1.61042928,176.66,176.58,10.0171]
[1641103178128,1.87042928,176.66,176.58,10.0171]
[1641103178327,1.61042928,176.67,176.58,10.0171]
[1641103179130,1.61042928,176.68,176.58,10.0171]
[1641103179530,1.87042928,176.68,176.58,10.0171]
[1641103181136,1.61042928,176.67,176.58,10.0171]
[1641103181535,1.87042928,176.67,176.58,10.0171]
[1641103182235,1.61042928,176.66,176.58,10.0171]
[1641103182642,1.87042928,176.66,176.58,10.0171]
[1641103183037,0.26,176.66,176.58,10.0171]
[1641103183437,1.87042928,176.67,176.58,10.0171]
[1641103184338,0.26,176.67,176.58,10.0171]
[1641103184538,1.87042928,176.68,176.58,10.0171]
[1641103186848,1.61042928,176.68,176.58,23.1031]
[1641103187042,1.61042928,176.68,176.58,24.52979368]
[1641103187942,10.0,176.7,176.58,24.52979368]
[1641103188345,10.26,176.7,176.58,24.52979368]
[1641103190249,10.76,176.7,176.58,23.1031]
[1641103190449,10.26,176.7,176.58,23.1031]
[1641103190652,10.76,176.7,176.58,23.1031]
[1641103190849,10.26,176.7,176.58,23.1031]
[1641103192968,10.76,176.7,176.58,23.1031]
[1641103193370,1.61042928,176.69,176.58,23.1031]
[1641103193570,1.87042928,176.69,176.58,23.1031]
[1641103195672,1.87042928,176.69,176.58,22.8431]
[1641103196371,2.37042928,176.69,176.58,22.8431]
[1641103196975,2.37042928,176.69,176.58,23.1031]
[1641103197373,3.64002928,176.69,176.58,23.1031]
[1641103197577,2.88002928,176.69,176.58,23.1031]
[1641103198277,1.61042928,176.68,176.58,23.1031]
[1641103198877,1.87042928,176.68,176.58,23.1031]
[1641103200280,1.61042928,176.68,176.58,23.1031]
[1641103200880,1.61042928,176.68,176.58,18.1971]
[1641103202078,0.26,176.68,176.58,18.1971]
[1641103202279,3.17372928,176.69,176.58,17.9371]
[1641103202480,3.67372928,176.69,176.58,9.7571]
[1641103202679,1.61042928,176.68,176.58,9.7571]
[1641103202981,1.87042928,176.68,176.58,9.7571]
[1641103203379,2.37042928,176.68,176.58,9.7571]
[1641103204180,26.04580694,176.66,176.58,9.7571]
[1641103204580,26.30580694,176.66,176.58,9.7571]
[1641103204980,1.61042928,176.65,176.58,9.7571]
[1641103205481,1.87042928,176.65,176.58,9.7571]
[1641103205684,0.26,176.65,176.58,9.7571]
[1641103205883,0.26,176.65,176.58,10.0171]
[1641103206083,1.87042928,176.66,176.58,10.0171]
[1641103206482,0.26,176.66,176.58,10.0171]
[1641103206883,1.5897,176.67,176.58,10.0171]
[1641103208089,0.26,176.67,176.58,10.0171]
[1641103208484,0.26,176.68,176.58,10.0171]
[1641103208885,27.5070466,176.69,176.58,10.0171]
[1641103209787,29.11747588,176.69,176.58,10.0171]
[1641103211591,29.61747588,176.69,176.58,10.0171]
[1641103212189,29.11747588,176.69,176.58,10.0171]
[1641103212390,29.61747588,176.69,176.58,10.0171]
[1641103213292,29.61747588,176.69,176.58,9.7571]
[1641103213495,38.10987588,176.69,176.58,9.7571]
[1641103214493,1.61042928,176.68,176.58,9.7571]
[1641103214794,10.10362928,176.68,176.58,8.4933]
[1641103214994,1.61042928,176.67,176.58,8.4933]
[1641103215394,2.37042928,176.67,176.58,8.4933]
[1641103215594,3.68722928,176.67,176.58,8.4933]
[1641103215997,12.18062928,176.67,176.58,8.4933]
[1641103217995,1.61042928,176.65,176.58,8.4933]
[1641103218198,1.61042928,176.65,176.56,1.2758]
[1641103218397,2.37042928,176.65,176.57,8.4938]
[1641103219696,3.61622928,176.65,176.57,8.4938]
[1641103221105,1.61042928,176.65,176.57,13.5128]
[1641103221402,1.61042928,176.65,176.57,13.7728]
[1641103221602,1.61042928,176.66,176.57,13.7728]
[1641103221900,1.61042928,176.66,176.62,8.4911]
[1641103222502,1.61042928,176.68,176.62,8.4911]
[1641103223302,1.61042928,176.67,176.62,8.4911]
[1641103224101,1.87042928,176.67,176.62,8.4911]
[1641103224704,1.87042928,176.67,176.6,8.492]
[1641103225003,1.87042928,176.67,176.58,1.2362]
[1641103225203,1.61042928,176.66,176.55,28.3072]
[1641103225405,2.11042928,176.66,176.52,1.2321]
[1641103225606,1.2715,176.65,176.52,1.2321]
[1641103226006,1.61042928,176.64,176.52,1.2321]
[1641103226410,2.37042928,176.64,176.52,1.2321]
[1641103226623,26.08057679,176.62,176.52,1.2321]
[1641103226825,8.4957,176.62,176.52,9.7282]
[1641103227032,9.2557,176.62,176.52,9.7282]
[1641103227825,40.20109919,176.62,176.52,9.7282]
[1641103228027,41.81152847,176.62,176.52,9.7282]
[1641103231434,40.20109919,176.62,176.52,9.7282]
[1641103231632,40.20109919,176.62,176.49,8.18]
[1641103231832,48.38109919,176.62,176.49,1.2584]
[1641103232235,49.80779287,176.62,176.49,1.2584]
[1641103232435,1.2729,176.61,176.49,1.2584]
[1641103232636,8.4977,176.58,176.49,1.2584]
[1641103232834,8.9977,176.58,176.49,1.2584]
[1641103233034,9.2577,176.58,176.49,1.2584]
[1641103233237,9.2577,176.58,176.48,79.3117]
[1641103236038,9.2577,176.58,176.48,87.8094]
[1641103238840,9.2577,176.58,176.48,79.3117]
[1641103239044,8.18,176.57,176.43,1.2876]
[1641103239242,23.34145173,176.53,176.43,1.2876]
[1641103239444,23.84145173,176.53,176.43,1.2876]
[1641103239645,24.10145173,176.53,176.43,1.2876]
[1641103240645,32.60195173,176.53,176.43,1.2876]
[1641103240845,9.2605,176.53,176.43,1.2876]
[1641103241049,0.76,176.53,176.43,1.2876]
[1641103241346,0.26,176.53,176.43,1.2876]
[1641103241546,9.79042928,176.55,176.43,1.5476]
[1641103241547,1.87042928,176.55,176.43,1.5476]
[1641103241746,1.87042928,176.55,176.43,10.0477]
[1641103241948,1.2411,176.56,176.43,10.0477]
[1641103242147,1.7411,176.56,176.44,1.2717]
[1641103242547,1.7411,176.56,176.44,1.5317]
[1641103243348,2.0011,176.56,176.44,1.5317]
[1641103243746,2.0011,176.56,176.47,8.4982]